[Event "Charlotte Fall-GM 2019"]
[Site "Charlotte"]
[Date "2019.11.28"]
[Round "1.3"]
[White "Wang, Kevin"]
[Black "Ringoir, Tanguy"]
[Result "0-1"]
[ECO "D94"]
[WhiteElo "2416"]
[BlackElo "2501"]
[Annotator "RC"]
[PlyCount "56"]
[EventDate "2019.11.28"]
[EventType "tourn"]
[EventCountry "USA"]
[SourceTitle "playchess.com"]
[Source "ChessBase"]
[SourceQuality "1"]
[TimeControl "5400+30"]

1. c4 {[%emt 1:30:30]} g6 {[%emt 1:30:30]} 2. Nc3 {[%emt 0:00:30]} c5 {[%emt 0:00:30]} 3. Nf3 {[%emt 0:00:30]} Bg7 {[%emt 0:00:30]} 4. e3 {[%emt 0:00:30]} Nf6 {[%emt 0:00:30]} 5. Be2 {[%emt 0:00:30]} O-O {[%emt 0:00:30]} 6. O-O {[%emt 0:00:30]} d5 {[%emt 0:00:30]} 7. d4 {[%emt 0:00:30]} cxd4 {[%emt 0:00:30]} 8. exd4 {[%emt 0:00:30]} Nc6 {[%emt 0:00:30]} 9. h3 {[%emt 0:00:30]} dxc4 {[%emt 0:00:30]} 10. Bxc4 {[%emt 0:00:30]} b6 {[%emt 0:00:30]} 11. a3 {[%emt 0:00:30]} Bb7 {[%emt 0:00:30]} 12. Re1 {[%emt 0:00:30]} Rc8 {[%emt 0:00:30]} 13. Ba2 {[%emt 0:00:30]} e6 {[%emt 0:00:30]} 14. Bg5 {[%emt 0:00:30]} h6 {[%emt 0:00:30]} 15. Bh4 {[%emt 0:00:30]} Ne7 {[%emt 0:00:30]} 16. Bg3 {[%emt 0:00:30]} Nf5 {[%emt 0:00:30]} 17. Be5 {[%emt 0:00:30]} Bxf3 {[%emt 0:00:30]} 18. Qxf3 {[%emt 0:00:30]} Nxd4 {[%emt 0:00:30]} 19. Qb7 {[%emt 0:00:30]} Nd7 {[%emt 0:00:30]} 20. Bxd4 {[%emt 0:00:30]} Bxd4 {[%emt 0:00:30]} 21. Qxa7 {[%emt 0:00:30]} Nc5 {[%emt 0:00:30]} 22. Nb5 {[%emt 0:00:30]} Bxf2+ {[%emt 0:00:30]} 23. Kxf2 {[%emt 0:00:30]} Nd3+ {[%emt 0:00:30]} 24. Kg1 {[%emt 0:00:30]} Nxe1 {[%emt 0:00:30]} 25. Rxe1 {[%emt 0:00:30]} Qd2 {[%emt 0:00:30]} 26. Rb1 {[%emt 0:00:30]} Rc1+ {[%emt 0:00:30]} 27. Rxc1 {[%emt 0:00:30]} Qxc1+ {[%emt 0:00:30]} 28. Kh2 {[%emt 0:00:30]} Qf4+ {[%emt 0:00:30]} 0-1

[Event "Charlotte Fall-GM 2019"]
[Site "Charlotte"]
[Date "2019.11.28"]
[Round "2.3"]
[White "Paragua, Mark"]
[Black "Grinberg, Eyal"]
[Result "1-0"]
[ECO "A11"]
[WhiteElo "2496"]
[BlackElo "2472"]
[Annotator "ChessBase"]
[PlyCount "119"]
[EventDate "2019.11.28"]
[EventType "tourn"]
[EventCountry "USA"]
[SourceTitle "playchess.com"]
[Source "ChessBase"]
[SourceQuality "1"]
[TimeControl "5400+30"]

1. c4 {[%emt 1:30:30]} c6 {[%emt 1:30:30]} 2. Nf3 {[%emt 0:00:30]} d5 {[%emt 0:00:30]} 3. g3 {[%emt 0:00:30]} Nf6 {[%emt 0:00:30]} 4. Bg2 {[%emt 0:00:30]} Bg4 {[%emt 0:00:30]} 5. Ne5 {[%emt 0:00:30]} Be6 {[%emt 0:00:30]} 6. cxd5 {[%emt 0:00:30]} Bxd5 {[%emt 0:00:30]} 7. Nf3 {[%emt 0:00:30]} c5 {[%emt 0:00:30]} 8. Nc3 {[%emt 0:00:30]} Bc6 {[%emt 0:00:30]} 9. O-O {[%emt 0:00:30]} e6 {[%emt 0:00:30]} 10. Re1 {[%emt 0:00:30]} Nbd7 {[%emt 0:00:30]} 11. e4 {[%emt 0:00:30]} e5 {[%emt 0:00:30]} 12. d3 {[%emt 0:00:30]} Bd6 {[%emt 0:00:30]} 13. Nh4 {[%emt 0:00:30]} Nf8 {[%emt 0:00:30]} 14. Nf5 {[%emt 0:00:30]} Ne6 {[%emt 0:00:30]} 15. Nd5 {[%emt 0:00:30]} Bf8 {[%emt 0:00:30]} 16. f4 {[%emt 0:00:30]} exf4 {[%emt 0:00:30]} 17. Bxf4 {[%emt 0:00:30]} Qd7 {[%emt 0:00:30]} 18. Bd6 {[%emt 0:00:30]} Ng8 {[%emt 0:00:30]} 19. e5 {[%emt 0:00:30]} Bxd5 {[%emt 0:00:30]} 20. Bxd5 {[%emt 0:00:30]} Nh6 {[%emt 0:00:30]} 21. Bxe6 {[%emt 0:00:30]} fxe6 {[%emt 0:00:30]} 22. Nxh6 {[%emt 0:00:30]} gxh6 {[%emt 0:00:30]} 23. Qg4 {[%emt 0:00:30]} O-O-O {[%emt 0:00:30]} 24. Rac1 {[%emt 0:00:30]} Bxd6 {[%emt 0:00:30]} 25. exd6 {[%emt 0:00:30]} Qxd6 {[%emt 0:00:30]} 26. Re4 {[%emt 0:00:30]} Qd7 27. Rxe6 Kb8 28. Rxc5 Ka8 {[%emt 0:01:30]} 29. Qe4 {[%emt 0:01:30]} Rhe8 {[%emt 0:00:30]} 30. Rd5 {[%emt 0:00:30]} Qc8 {[%emt 0:00:30]} 31. Rxd8 {[%emt 0:00:30]} Rxd8 {[%emt 0:00:30]} 32. Qc4 {[%emt 0:00:30]} Qd7 {[%emt 0:00:30]} 33. Rxh6 {[%emt 0:00:30]} a6 {[%emt 0:00:30]} 34. Qe4 {[%emt 0:00:30]} Qb5 {[%emt 0:00:30]} 35. a4 Qc5+ {[%emt 0:00:30]} 36. Kg2 {[%emt 0:01:00]} Ka7 {[%emt 0:00:30]} 37. Rxh7 {[%emt 0:00:30]} Qc2+ {[%emt 0:00:30]} 38. Kh3 {[%emt 0:00:30]} Qxb2 {[%emt 0:00:30]} 39. g4 {[%emt 0:00:30]} Qb3 {[%emt 0:00:30]} 40. Kh4 {[%emt 0:00:30]} Ka8 {[%emt 0:00:30]} 41. g5 {[%emt 0:00:30]} Qb2 {[%emt 0:00:30]} 42. Kg3 {[%emt 0:00:30]} Qb1 {[%emt 0:00:30]} 43. Kh4 {[%emt 0:00:30]} Qb2 {[%emt 0:00:30]} 44. Kh3 {[%emt 0:00:30]} Qb1 {[%emt 0:00:30]} 45. Rd7 {[%emt 0:00:30]} Qf1+ {[%emt 0:00:30]} 46. Kg4 {[%emt 0:00:30]} Qg1+ {[%emt 0:00:30]} 47. Kf5 {[%emt 0:00:30]} Qc5+ {[%emt 0:00:30]} 48. Kf6 {[%emt 0:00:30]} Qf8+ {[%emt 0:00:30]} 49. Rf7 {[%emt 0:00:30]} Qh8+ {[%emt 0:00:30]} 50. Kf5 {[%emt 0:00:30]} Qh3+ {[%emt 0:00:30]} 51. Kg6 {[%emt 0:00:30]} Qc8 {[%emt 0:00:30]} 52. h4 {[%emt 0:00:30]} Rg8+ {[%emt 0:00:30]} 53. Kh5 {[%emt 0:00:30]} Rh8+ {[%emt 0:00:30]} 54. Rh7 {[%emt 0:00:30]} Re8 {[%emt 0:00:30]} 55. Qc4 {[%emt 0:00:30]} Qh3 {[%emt 0:00:30]} 56. Qd5 {[%emt 0:00:30]} Qc8 {[%emt 0:00:30]} 57. g6 {[%emt 0:00:30]} Rd8 {[%emt 0:00:30]} 58. Qxb7+ {[%emt 0:00:30]} Qxb7 {[%emt 0:00:30]} 59. Rxb7 {[%emt 0:00:30]} Kxb7 {[%emt 0:00:30]} 60. g7 {[%emt 0:00:30]} 1-0

[Event "Charlotte Fall-GM 2019"]
[Site "Charlotte"]
[Date "2019.11.29"]
[Round "3.2"]
[White "Wang, Kevin"]
[Black "Nakar, Eylon"]
[Result "1/2-1/2"]
[ECO "E06"]
[WhiteElo "2416"]
[BlackElo "2433"]
[Annotator "RC"]
[PlyCount "59"]
[EventDate "2019.11.28"]
[EventType "tourn"]
[EventCountry "USA"]
[SourceTitle "playchess.com"]
[Source "ChessBase"]
[SourceQuality "1"]
[TimeControl "5400+30"]

1. d4 {[%emt 1:30:30]} Nf6 {[%emt 1:30:30]} 2. c4 {[%emt 0:00:30]} e6 {[%emt 0:00:30]} 3. Nf3 {[%emt 0:00:30]} d5 {[%emt 0:00:30]} 4. Nc3 {[%emt 0:00:30]} Be7 {[%emt 0:00:30]} 5. g3 {[%emt 0:00:30]} O-O {[%emt 0:00:30]} 6. Bg2 {[%emt 0:00:30]} dxc4 {[%emt 0:00:30]} 7. Ne5 {[%emt 0:00:30]} c5 {[%emt 0:00:30]} 8. dxc5 {[%emt 0:00:30]} Qxd1+ {[%emt 0:00:30]} 9. Nxd1 {[%emt 0:00:30]} Bxc5 {[%emt 0:00:30]} 10. Ne3 {[%emt 0:00:30]} Nbd7 {[%emt 0:00:30]} 11. N3xc4 {[%emt 0:00:30]} Nxe5 {[%emt 0:00:30]} 12. Nxe5 {[%emt 0:00:30]} Bb4+ {[%emt 0:00:30]} 13. Bd2 {[%emt 0:00:30]} Bxd2+ {[%emt 0:00:30]} 14. Kxd2 {[%emt 0:00:30]} Rd8+ {[%emt 0:00:30]} 15. Kc2 {[%emt 0:00:30]} Kf8 {[%emt 0:00:30]} 16. Rhd1 {[%emt 0:00:30]} Rxd1 {[%emt 0:00:30]} 17. Rxd1 {[%emt 0:00:30]} Ke7 {[%emt 0:00:30]} 18. a4 {[%emt 0:00:30]} Rb8 {[%emt 0:00:30]} 19. b4 {[%emt 0:00:30]} Bd7 {[%emt 0:00:30]} 20. Kb3 {[%emt 0:00:30]} Be8 {[%emt 0:00:30]} 21. b5 {[%emt 0:00:30]} Nd7 {[%emt 0:00:30]} 22. Nd3 {[%emt 0:00:30]} b6 {[%emt 0:00:30]} 23. Rc1 {[%emt 0:00:30]} Kd8 {[%emt 0:00:30]} 24. Kb4 {[%emt 0:00:30]} Rc8 {[%emt 0:00:30]} 25. Rxc8+ {[%emt 0:00:30]} Kxc8 {[%emt 0:00:30]} 26. a5 {[%emt 0:00:30]} f6 {[%emt 0:00:30]} 27. a6 {[%emt 0:00:30]} Ne5 {[%emt 0:00:30]} 28. Bb7+ {[%emt 0:00:30]} Kc7 {[%emt 0:00:30]} 29. Nf4 {[%emt 0:00:30]} Kd6 {[%emt 0:00:30]} 30. f3 {[%emt 0:00:30]} 1/2-1/2

[Event "Charlotte Fall-GM 2019"]
[Site "Charlotte"]
[Date "2019.11.29"]
[Round "3.4"]
[White "Yu, Jennifer"]
[Black "Paragua, Mark"]
[Result "1-0"]
[ECO "E94"]
[WhiteElo "2278"]
[BlackElo "2496"]
[Annotator "RC"]
[PlyCount "81"]
[EventDate "2019.11.28"]
[EventType "tourn"]
[EventCountry "USA"]
[SourceTitle "playchess.com"]
[Source "ChessBase"]
[SourceQuality "1"]
[TimeControl "5400+30"]

1. d4 {[%emt 1:30:30]} Nf6 {[%emt 1:30:30]} 2. c4 {[%emt 0:00:30]} g6 {[%emt 0:00:30]} 3. Nc3 {[%emt 0:00:30]} Bg7 {[%emt 0:00:30]} 4. e4 {[%emt 0:00:30]} d6 {[%emt 0:00:30]} 5. Nf3 {[%emt 0:00:30]} O-O {[%emt 0:00:30]} 6. Be2 {[%emt 0:00:30]} e5 {[%emt 0:00:30]} 7. O-O {[%emt 0:00:30]} Na6 {[%emt 0:00:30]} 8. a3 {[%emt 0:00:30]} c6 {[%emt 0:00:30]} 9. d5 {[%emt 0:00:30]} Bd7 {[%emt 0:00:30]} 10. b4 {[%emt 0:00:30]} cxd5 {[%emt 0:00:30]} 11. cxd5 {[%emt 0:00:30]} Rc8 {[%emt 0:00:30]} 12. Qb3 {[%emt 0:00:30]} Nh5 {[%emt 0:00:30]} 13. Bg5 {[%emt 0:00:30]} f6 {[%emt 0:00:30]} 14. Bd2 {[%emt 0:00:30]} f5 {[%emt 0:00:30]} 15. Rac1 {[%emt 0:00:30]} Nf4 {[%emt 0:00:30]} 16. Bxf4 {[%emt 0:00:30]} exf4 {[%emt 0:00:30]} 17. exf5 {[%emt 0:00:30]} g5 {[%emt 0:00:30]} 18. Ne4 {[%emt 0:00:30]} h6 {[%emt 0:00:30]} 19. Nxd6 {[%emt 0:00:30]} Rxc1 {[%emt 0:00:30]} 20. Rxc1 {[%emt 0:00:30]} Qe7 {[%emt 0:00:30]} 21. Bxa6 {[%emt 0:00:30]} bxa6 {[%emt 0:00:30]} 22. Nb7 {[%emt 0:00:30]} Bxf5 {[%emt 0:00:30]} 23. d6+ {[%emt 0:00:30]} Qf7 {[%emt 0:00:30]} 24. Qxf7+ {[%emt 0:00:30]} Rxf7 {[%emt 0:00:30]} 25. Nc5 {[%emt 0:00:30]} Rf8 {[%emt 0:00:30]} 26. Rd1 {[%emt 0:00:30]} Rd8 {[%emt 0:00:30]} 27. Rd5 {[%emt 0:00:30]} Bd7 {[%emt 0:00:30]} 28. Ne5 {[%emt 0:00:30]} Bxe5 {[%emt 0:00:30]} 29. Rxe5 {[%emt 0:00:30]} Bc6 {[%emt 0:00:30]} 30. Re6 {[%emt 0:00:30]} Bd5 {[%emt 0:00:30]} 31. Rxh6 {[%emt 0:00:30]} Kg7 {[%emt 0:00:30]} 32. Re6 {[%emt 0:00:30]} Kf7 {[%emt 0:00:30]} 33. Re7+ {[%emt 0:00:30]} Kf6 {[%emt 0:00:30]} 34. Nd7+ {[%emt 0:00:30]} Kg6 {[%emt 0:00:30]} 35. f3 {[%emt 0:00:30]} Ba2 {[%emt 0:00:30]} 36. Ne5+ {[%emt 0:00:30]} Kf6 {[%emt 0:00:30]} 37. Ng4+ {[%emt 0:00:30]} Kf5 {[%emt 0:00:30]} 38. d7 {[%emt 0:00:30]} Be6 {[%emt 0:00:30]} 39. Re8 {[%emt 0:00:30]} Rxd7 {[%emt 0:00:30]} 40. Rf8+ {[%emt 0:00:30]} Bf7 {[%emt 0:00:30]} 41. Rxf7+ {[%emt 0:00:30]} 1-0

[Event "Charlotte Fall-GM 2019"]
[Site "Charlotte"]
[Date "2019.11.29"]
[Round "3.5"]
[White "Reshef, Omer"]
[Black "Berczes, David"]
[Result "1/2-1/2"]
[ECO "C48"]
[WhiteElo "2461"]
[BlackElo "2452"]
[Annotator "RC"]
[PlyCount "130"]
[EventDate "2019.11.28"]
[EventType "tourn"]
[EventCountry "USA"]
[SourceTitle "playchess.com"]
[Source "ChessBase"]
[SourceQuality "1"]
[TimeControl "5400+30"]

1. e4 {[%emt 1:30:30]} e5 {[%emt 1:30:30]} 2. Nf3 {[%emt 0:00:30]} Nc6 {[%emt 0:00:30]} 3. Nc3 {[%emt 0:00:30]} Nf6 {[%emt 0:00:30]} 4. Bb5 {[%emt 0:00:30]} Bc5 {[%emt 0:00:30]} 5. Nxe5 {[%emt 0:00:30]} Nxe5 {[%emt 0:00:30]} 6. d4 {[%emt 0:00:30]} Bd6 {[%emt 0:00:30]} 7. f4 {[%emt 0:00:30]} Neg4 {[%emt 0:00:30]} 8. e5 {[%emt 0:00:30]} Bb4 {[%emt 0:00:30]} 9. exf6 {[%emt 0:00:30]} Nxf6 {[%emt 0:00:30]} 10. O-O {[%emt 0:00:30]} O-O {[%emt 0:00:30]} 11. Qf3 {[%emt 0:00:30]} c6 {[%emt 0:00:30]} 12. Bd3 {[%emt 0:00:30]} Qb6 {[%emt 0:00:30]} 13. Ne2 {[%emt 0:00:30]} d5 {[%emt 0:00:30]} 14. c3 {[%emt 0:00:30]} Bg4 {[%emt 0:00:30]} 15. Qf2 {[%emt 0:00:30]} Bxe2 {[%emt 0:00:30]} 16. Qxe2 {[%emt 0:00:30]} Bd6 {[%emt 0:00:30]} 17. Qf3 {[%emt 0:00:30]} c5 {[%emt 0:00:30]} 18. dxc5 {[%emt 0:00:30]} Bxc5+ {[%emt 0:00:30]} 19. Kh1 {[%emt 0:00:30]} Rfe8 {[%emt 0:00:30]} 20. b4 {[%emt 0:00:30]} Be3 {[%emt 0:00:30]} 21. Re1 {[%emt 0:00:30]} Bxc1 {[%emt 0:00:30]} 22. Raxc1 {[%emt 0:00:30]} g6 {[%emt 0:00:30]} 23. h3 {[%emt 0:00:30]} Rxe1+ {[%emt 0:00:30]} 24. Rxe1 Rc8 {[%emt 0:00:30]} 25. Bb1 {[%emt 0:01:00]} Qc7 {[%emt 0:00:30]} 26. Rc1 {[%emt 0:00:30]} Nh5 {[%emt 0:00:30]} 27. g3 {[%emt 0:00:30]} Qc4 {[%emt 0:00:30]} 28. Kg2 {[%emt 0:00:30]} Re8 {[%emt 0:00:30]} 29. Rf1 {[%emt 0:00:30]} d4 {[%emt 0:00:30]} 30. cxd4 {[%emt 0:00:30]} Qxd4 {[%emt 0:00:30]} 31. Qd3 {[%emt 0:00:30]} Rd8 {[%emt 0:00:30]} 32. Qxd4 {[%emt 0:00:30]} Rxd4 {[%emt 0:00:30]} 33. a3 {[%emt 0:00:30]} Nf6 {[%emt 0:00:30]} 34. Kf3 {[%emt 0:00:30]} Nd5 {[%emt 0:00:30]} 35. Rc1 {[%emt 0:00:30]} a5 {[%emt 0:00:30]} 36. bxa5 {[%emt 0:00:30]} Ra4 {[%emt 0:00:30]} 37. Rc5 {[%emt 0:00:30]} Rxa3+ {[%emt 0:00:30]} 38. Kf2 {[%emt 0:00:30]} Nc3 {[%emt 0:00:30]} 39. Bc2 {[%emt 0:00:30]} Kg7 {[%emt 0:00:30]} 40. Ke1 {[%emt 0:00:30]} Na2 {[%emt 0:00:30]} 41. Rb5 {[%emt 0:00:30]} Rxg3 {[%emt 0:00:30]} 42. Rxb7 {[%emt 0:00:30]} Ra3 {[%emt 0:00:30]} 43. Rb5 {[%emt 0:00:30]} Rxh3 {[%emt 0:00:30]} 44. Rb3 {[%emt 0:00:30]} Rxb3 {[%emt 0:00:30]} 45. Bxb3 Nb4 {[%emt 0:00:30]} 46. Kd2 {[%emt 0:01:00]} Kf6 {[%emt 0:00:30]} 47. Kc3 {[%emt 0:00:30]} Nc6 {[%emt 0:00:30]} 48. a6 {[%emt 0:00:30]} Ke7 {[%emt 0:00:30]} 49. Bd5 {[%emt 0:00:30]} Kd6 {[%emt 0:00:30]} 50. Bxf7 {[%emt 0:00:30]} Kc7 {[%emt 0:00:30]} 51. Kc4 {[%emt 0:00:30]} Kb6 {[%emt 0:00:30]} 52. Kd5 {[%emt 0:00:30]} Ne7+ {[%emt 0:00:30]} 53. Ke6 {[%emt 0:00:30]} Nf5 {[%emt 0:00:30]} 54. Bg8 {[%emt 0:00:30]} h5 {[%emt 0:00:30]} 55. Kf6 {[%emt 0:00:30]} h4 {[%emt 0:00:30]} 56. Bd5 {[%emt 0:00:30]} h3 {[%emt 0:00:30]} 57. Bf3 {[%emt 0:00:30]} Kxa6 {[%emt 0:00:30]} 58. Be4 {[%emt 0:00:30]} Ng3 {[%emt 0:00:30]} 59. Bf3 {[%emt 0:00:30]} Nf5 {[%emt 0:00:30]} 60. Bh1 {[%emt 0:00:30]} Ng3 {[%emt 0:00:30]} 61. Bf3 {[%emt 0:00:30]} Nh5+ {[%emt 0:00:30]} 62. Kxg6 {[%emt 0:00:30]} Nxf4+ {[%emt 0:00:30]} 63. Kf5 {[%emt 0:00:30]} Ng2 {[%emt 0:00:30]} 64. Kg4 {[%emt 0:00:30]} h2 {[%emt 0:00:30]} 65. Bxg2 {[%emt 0:00:30]} h1=B {[%emt 0:00:30]} 1/2-1/2

[Event "Charlotte Fall-GM 2019"]
[Site "Charlotte"]
[Date "2019.11.29"]
[Round "4.1"]
[White "Korley, Kassa"]
[Black "Grinberg, Eyal"]
[Result "*"]
[ECO "D10"]
[WhiteElo "2447"]
[BlackElo "2472"]
[Annotator "ChessBase"]
[PlyCount "49"]
[EventDate "2019.11.28"]
[EventType "tourn"]
[EventCountry "USA"]
[SourceTitle "playchess.com"]
[Source "ChessBase"]
[SourceQuality "1"]
[TimeControl "5400+30"]

1. d4 {[%emt 1:30:30]} d5 {[%emt 1:30:30]} 2. c4 {[%emt 0:00:30]} c6 {[%emt 0:00:30]} 3. Nc3 {[%emt 0:00:30]} Nf6 {[%emt 0:00:30]} 4. cxd5 {[%emt 0:00:30]} cxd5 {[%emt 0:00:30]} 5. Bf4 {[%emt 0:00:30]} Nc6 {[%emt 0:00:30]} 6. e3 {[%emt 0:00:30]} Bg4 {[%emt 0:00:30]} 7. f3 {[%emt 0:00:30]} Bd7 {[%emt 0:00:30]} 8. g4 e6 {[%emt 0:00:30]} 9. Bd3 {[%emt 0:01:00]} Bb4 {[%emt 0:00:30]} 10. Nge2 {[%emt 0:00:30]} h6 {[%emt 0:00:30]} 11. Kf2 {[%emt 0:00:30]} a6 {[%emt 0:00:30]} 12. h4 {[%emt 0:00:30]} Qe7 {[%emt 0:00:30]} 13. Ng3 {[%emt 0:00:30]} Bd6 {[%emt 0:00:30]} 14. Bxd6 {[%emt 0:00:30]} Qxd6 {[%emt 0:00:30]} 15. g5 {[%emt 0:00:30]} Ng8 {[%emt 0:00:30]} 16. f4 {[%emt 0:00:30]} Nge7 {[%emt 0:00:30]} 17. Qd2 {[%emt 0:00:30]} O-O-O {[%emt 0:00:30]} 18. b4 {[%emt 0:00:30]} hxg5 {[%emt 0:00:30]} 19. hxg5 {[%emt 0:00:30]} Nxb4 {[%emt 0:00:30]} 20. Be2 {[%emt 0:00:30]} f6 {[%emt 0:00:30]} 21. gxf6 {[%emt 0:00:30]} gxf6 {[%emt 0:00:30]} 22. Rab1 {[%emt 0:00:30]} Rxh1 {[%emt 0:00:30]} 23. Rf1 {[%emt 0:00:30]} Rg1 24. Rxg1 e5 {[%emt 0:01:00]} 25. Rh1 *

[Event "Charlotte Fall-GM 2019"]
[Site "Charlotte"]
[Date "2019.11.29"]
[Round "4.2"]
[White "Paragua, Mark"]
[Black "Reshef, Omer"]
[Result "0-1"]
[ECO "A34"]
[WhiteElo "2496"]
[BlackElo "2461"]
[Annotator "RC"]
[PlyCount "94"]
[EventDate "2019.11.28"]
[EventType "tourn"]
[EventCountry "USA"]
[SourceTitle "playchess.com"]
[Source "ChessBase"]
[SourceQuality "1"]
[TimeControl "5400+30"]

1. Nf3 {[%emt 1:30:30]} c5 {[%emt 1:30:30]} 2. c4 {[%emt 0:00:30]} Nc6 {[%emt 0:00:30]} 3. Nc3 {[%emt 0:00:30]} e5 {[%emt 0:00:30]} 4. e3 {[%emt 0:00:30]} Nf6 {[%emt 0:00:30]} 5. a3 {[%emt 0:00:30]} Be7 {[%emt 0:00:30]} 6. d4 {[%emt 0:00:30]} cxd4 {[%emt 0:00:30]} 7. exd4 {[%emt 0:00:30]} exd4 {[%emt 0:00:30]} 8. Nxd4 {[%emt 0:00:30]} d5 {[%emt 0:00:30]} 9. Nxc6 {[%emt 0:00:30]} bxc6 {[%emt 0:00:30]} 10. cxd5 {[%emt 0:00:30]} cxd5 {[%emt 0:00:30]} 11. Be3 {[%emt 0:00:30]} O-O {[%emt 0:00:30]} 12. Be2 {[%emt 0:00:30]} Be6 {[%emt 0:00:30]} 13. O-O {[%emt 0:00:30]} Ne4 {[%emt 0:00:30]} 14. Nb5 {[%emt 0:00:30]} Bf6 {[%emt 0:00:30]} 15. Nd4 {[%emt 0:00:30]} Qb8 {[%emt 0:00:30]} 16. Rb1 {[%emt 0:00:30]} Bd7 {[%emt 0:00:30]} 17. Bg4 {[%emt 0:00:30]} Bxg4 {[%emt 0:00:30]} 18. Qxg4 {[%emt 0:00:30]} Rc8 {[%emt 0:00:30]} 19. Rbc1 {[%emt 0:00:30]} g6 {[%emt 0:00:30]} 20. b4 {[%emt 0:00:30]} h5 {[%emt 0:00:30]} 21. Qd7 {[%emt 0:00:30]} Nc3 {[%emt 0:00:30]} 22. Kh1 {[%emt 0:00:30]} Rc4 {[%emt 0:00:30]} 23. Nb3 {[%emt 0:00:30]} Qe5 {[%emt 0:00:30]} 24. Rfe1 {[%emt 0:00:30]} Re8 {[%emt 0:00:30]} 25. f3 {[%emt 0:00:30]} Re7 {[%emt 0:00:30]} 26. Qd8+ {[%emt 0:00:30]} Kh7 {[%emt 0:00:30]} 27. Nd2 {[%emt 0:00:30]} Rcc7 {[%emt 0:00:30]} 28. Bg1 {[%emt 0:00:30]} Qg5 {[%emt 0:00:30]} 29. Rxe7 {[%emt 0:00:30]} Rxe7 {[%emt 0:00:30]} 30. f4 {[%emt 0:00:30]} Qxf4 {[%emt 0:00:30]} 31. Rf1 {[%emt 0:00:30]} Qe5 {[%emt 0:00:30]} 32. Bc5 {[%emt 0:00:30]} Re6 {[%emt 0:00:30]} 33. Qf8 {[%emt 0:00:30]} Bg7 {[%emt 0:00:30]} 34. Qxf7 {[%emt 0:00:30]} Ne4 {[%emt 0:00:30]} 35. Nxe4 {[%emt 0:00:30]} dxe4 {[%emt 0:00:30]} 36. Bd4 {[%emt 0:00:30]} Qxd4 {[%emt 0:00:30]} 37. Qxe6 {[%emt 0:00:30]} Qd3 {[%emt 0:00:30]} 38. Re1 {[%emt 0:00:30]} Qxa3 {[%emt 0:00:30]} 39. Qxe4 {[%emt 0:00:30]} Qa4 {[%emt 0:00:30]} 40. Qb7 {[%emt 0:00:30]} a5 {[%emt 0:00:30]} 41. b5 {[%emt 0:00:30]} Qb4 {[%emt 0:00:30]} 42. Rc1 {[%emt 0:00:30]} a4 {[%emt 0:00:30]} 43. b6 {[%emt 0:00:30]} a3 {[%emt 0:00:30]} 44. Qc7 {[%emt 0:00:30]} a2 {[%emt 0:00:30]} 45. b7 {[%emt 0:00:30]} Qa3 {[%emt 0:00:30]} 46. Ra1 {[%emt 0:00:30]} Qb2 {[%emt 0:00:30]} 47. Qc1 {[%emt 0:00:30]} Qxa1 {[%emt 0:00:30]} 0-1

[Event "Charlotte Fall-GM 2019"]
[Site "Charlotte"]
[Date "2019.11.29"]
[Round "4.4"]
[White "Nakar, Eylon"]
[Black "Berczes, David"]
[Result "1/2-1/2"]
[ECO "C82"]
[WhiteElo "2433"]
[BlackElo "2452"]
[Annotator "ChessBase"]
[PlyCount "39"]
[EventDate "2019.11.28"]
[EventType "tourn"]
[EventCountry "USA"]
[SourceTitle "playchess.com"]
[Source "ChessBase"]
[SourceQuality "1"]
[TimeControl "5400+30"]

1. e4 {[%emt 1:30:30]} e5 {[%emt 1:30:30]} 2. Nf3 {[%emt 0:00:30]} Nc6 {[%emt 0:00:30]} 3. Bb5 {[%emt 0:00:30]} a6 {[%emt 0:00:30]} 4. Ba4 {[%emt 0:00:30]} Nf6 {[%emt 0:00:30]} 5. O-O {[%emt 0:00:30]} Nxe4 {[%emt 0:00:30]} 6. d4 {[%emt 0:00:30]} b5 {[%emt 0:00:30]} 7. Bb3 {[%emt 0:00:30]} d5 {[%emt 0:00:30]} 8. dxe5 {[%emt 0:00:30]} Be6 {[%emt 0:00:30]} 9. c3 {[%emt 0:00:30]} Bc5 {[%emt 0:00:30]} 10. Qd3 {[%emt 0:00:30]} O-O {[%emt 0:00:30]} 11. Be3 {[%emt 0:00:30]} Re8 {[%emt 0:00:30]} 12. Nbd2 {[%emt 0:00:30]} Bxe3 {[%emt 0:00:30]} 13. Qxe3 {[%emt 0:00:30]} Nxd2 {[%emt 0:00:30]} 14. Qxd2 {[%emt 0:00:30]} Na5 {[%emt 0:00:30]} 15. Rad1 {[%emt 0:00:30]} Nc4 {[%emt 0:00:30]} 16. Bxc4 {[%emt 0:00:30]} bxc4 {[%emt 0:00:30]} 17. Nd4 {[%emt 0:00:30]} c5 {[%emt 0:00:30]} 18. Nxe6 fxe6 19. f4 {[%emt 0:01:00]} g6 20. g4 {[%emt 0:00:30]} 1/2-1/2

[Event "Charlotte Fall-GM 2019"]
[Site "Charlotte"]
[Date "2019.11.29"]
[Round "4.5"]
[White "Wang, Kevin"]
[Black "Jacobson, Brandon"]
[Result "1/2-1/2"]
[ECO "D30"]
[WhiteElo "2416"]
[BlackElo "2452"]
[Annotator "ChessBase"]
[PlyCount "55"]
[EventDate "2019.11.28"]
[EventType "tourn"]
[EventCountry "USA"]
[SourceTitle "playchess.com"]
[Source "ChessBase"]
[SourceQuality "1"]
[TimeControl "5400+30"]

1. d4 {[%emt 1:30:30]} d5 {[%emt 1:30:30]} 2. c4 {[%emt 0:00:30]} e6 {[%emt 0:00:30]} 3. Nf3 {[%emt 0:00:30]} a6 {[%emt 0:00:30]} 4. c5 {[%emt 0:00:30]} b6 {[%emt 0:00:30]} 5. cxb6 {[%emt 0:00:30]} cxb6 {[%emt 0:00:30]} 6. Bf4 {[%emt 0:00:30]} Bb7 {[%emt 0:00:30]} 7. e3 {[%emt 0:00:30]} Nf6 {[%emt 0:00:30]} 8. Nc3 {[%emt 0:00:30]} Bd6 {[%emt 0:00:30]} 9. Bd3 {[%emt 0:00:30]} O-O {[%emt 0:00:30]} 10. O-O {[%emt 0:00:30]} Nc6 {[%emt 0:00:30]} 11. Rc1 {[%emt 0:00:30]} h6 {[%emt 0:00:30]} 12. a3 {[%emt 0:00:30]} Re8 {[%emt 0:00:30]} 13. h3 {[%emt 0:00:30]} Qb8 {[%emt 0:00:30]} 14. Bxd6 {[%emt 0:00:30]} Qxd6 {[%emt 0:00:30]} 15. b4 {[%emt 0:00:30]} Rac8 {[%emt 0:00:30]} 16. b5 {[%emt 0:00:30]} axb5 {[%emt 0:00:30]} 17. Nxb5 {[%emt 0:00:30]} Qe7 {[%emt 0:00:30]} 18. Qb3 {[%emt 0:00:30]} Red8 {[%emt 0:00:30]} 19. Qb2 {[%emt 0:00:30]} Nd7 {[%emt 0:00:30]} 20. Rfd1 {[%emt 0:00:30]} Qf8 {[%emt 0:00:30]} 21. Ne5 {[%emt 0:00:30]} Ncxe5 {[%emt 0:00:30]} 22. dxe5 {[%emt 0:00:30]} Rxc1 {[%emt 0:00:30]} 23. Rxc1 {[%emt 0:00:30]} Ba6 {[%emt 0:00:30]} 24. Rc7 {[%emt 0:00:30]} Nc5 {[%emt 0:00:30]} 25. Bf1 {[%emt 0:00:30]} Rc8 {[%emt 0:00:30]} 26. Rxc8 {[%emt 0:00:30]} Qxc8 {[%emt 0:00:30]} 27. Nd6 {[%emt 0:00:30]} Qc6 {[%emt 0:00:30]} 28. Bxa6 {[%emt 0:00:30]} 1/2-1/2